bitfinex-derivatives/quotes_BTCF0:USTF0_20210707
["timestamp","ask_amount","ask_price","bid_price","bid_amount"]
[1625659800812,0.33637801,34918.0,34917.0,1.63483925]
[1625659800931,0.9894,34919.0,34917.0,2.77922673]
[1625659801049,0.9894,34919.0,34912.0,0.00498884]
[1625659801290,0.9894,34919.0,34918.0,4.37875602]
[1625659801531,0.9894,34919.0,34918.0,4.37376817]
[1625659801772,0.9894,34919.0,34918.0,4.37875577]
[1625659802011,0.9894,34919.0,34918.0,5.84767367]
[1625659802373,0.4888,34919.0,34918.0,4.46535577]
[1625659802552,0.9315,34931.0,34918.0,7.56331733]
[1625659802672,0.50469663,34939.0,34927.0,0.96230176]
[1625659802795,0.50469663,34939.0,34927.0,1.27105176]
[1625659802979,0.16826902,34942.0,34938.0,5.85290182]
[1625659803274,0.24057544,34943.0,34941.0,0.649229]
[1625659803637,0.24057544,34943.0,34942.0,1.62790009]
[1625659804178,0.16830759,34946.0,34942.0,1.62790009]
[1625659804478,0.40854802,34950.0,34944.0,0.6473057]
[1625659804659,0.24057544,34950.0,34949.0,0.73653088]
[1625659805020,0.24057544,34950.0,34949.0,0.74151538]
[1625659805505,0.40859622,34950.0,34949.0,0.74151538]
[1625659805981,0.24057544,34950.0,34949.0,0.74151538]
[1625659806102,0.24057544,34950.0,34949.0,0.73653088]
[1625659806640,0.0002,34951.0,34949.0,0.73653088]
[1625659807846,0.0002,34951.0,34949.0,0.8980011]
[1625659808089,0.0002,34951.0,34949.0,0.73653088]
[1625659815238,0.0002,34951.0,34949.0,0.48115088]
[1625659816802,0.24057544,34950.0,34949.0,0.48115088]
[1625659818544,0.24057544,34950.0,34949.0,0.24057544]
[1625659818787,0.24057544,34950.0,34938.0,3.98300983]
[1625659818964,0.24057544,34943.0,34942.0,0.24057544]
[1625659820884,0.48115088,34943.0,34942.0,0.24057544]
[1625659826473,0.48115088,34943.0,34938.0,0.24057544]
[1625659827013,0.24057544,34939.0,34938.0,0.24057544]
[1625659828820,0.24057544,34939.0,34938.0,0.32567544]
[1625659829060,0.24057544,34939.0,34938.0,0.24057544]
[1625659829661,0.24057544,34939.0,34938.0,0.24556066]
[1625659832667,0.24057544,34939.0,34928.0,0.96974061]
[1625659832787,0.29757544,34939.0,34928.0,0.96974061]
[1625659832966,0.72172632,34929.0,34928.0,0.96974061]
[1625659833087,0.057,34928.0,34927.0,0.16184115]
[1625659833269,1.04538632,34929.0,34924.0,0.16200374]
[1625659833566,1.04538632,34929.0,34926.0,0.16186972]
[1625659833865,1.04538632,34929.0,34927.0,0.00498545]
[1625659834947,0.24057544,34928.0,34927.0,0.00498545]
[1625659835067,0.29757544,34928.0,34927.0,0.00498545]
[1625659835728,0.29757544,34928.0,34923.0,0.00498663]
[1625659835970,0.29757544,34928.0,34921.0,0.16214057]
[1625659836151,0.29757544,34928.0,34920.0,0.16216583]
[1625659836274,0.29757544,34928.0,34924.0,0.00498664]
[1625659836450,0.29757544,34928.0,34921.0,0.00498666]
[1625659836811,0.29757544,34928.0,34920.0,0.16216583]
[1625659836931,0.29757544,34928.0,34919.0,0.1622849]
[1625659837050,0.77872632,34920.0,34919.0,0.1622849]
[1625659837172,1.11853632,34920.0,34918.0,0.16232517]
[1625659837292,1.11853632,34920.0,34919.0,0.00498687]
[1625659837833,1.11853632,34920.0,34916.0,0.16244808]
[1625659838013,1.11853632,34920.0,34915.0,0.16249543]
[1625659838313,1.11853632,34920.0,34916.0,0.00498751]
[1625659838673,1.11853632,34920.0,34915.0,0.16249543]
[1625659838795,1.11853632,34920.0,34914.0,0.16259927]
[1625659839036,0.48115088,34915.0,34914.0,0.16259927]
[1625659839156,0.53815088,34915.0,34914.0,0.16259927]
[1625659839393,0.53815088,34915.0,34914.0,0.16758709]
[1625659839815,0.53815088,34915.0,34914.0,0.00498782]
[1625659840355,0.53815088,34915.0,34914.0,0.16762437]
[1625659840714,0.53815088,34915.0,34914.0,0.16263655]
[1625659841014,0.53815088,34915.0,34909.0,1.13860584]
[1625659841135,1.03815088,34915.0,34909.0,1.13860584]
[1625659841255,1.03815088,34915.0,34901.0,1.14152512]
[1625659841497,0.53815088,34915.0,34899.0,1.14222454]
[1625659841616,0.53815088,34915.0,34902.0,0.00498895]
[1625659841800,0.53815088,34915.0,34901.0,1.14146853]
[1625659842035,0.53815088,34915.0,34903.0,1.14061469]
[1625659842334,0.53815088,34915.0,34904.0,0.00498876]
[1625659842636,0.057,34912.0,34904.0,0.00498876]
[1625659842995,0.057,34912.0,34904.0,1.14038902]
[1625659843118,0.0755123,34905.0,34904.0,1.14537765]
[1625659843476,0.0755123,34905.0,34904.0,0.00498863]
[1625659844680,0.0755123,34905.0,34904.0,1.14494784]
[1625659845826,0.0755123,34905.0,34904.0,0.00498863]
[1625659846308,0.0755123,34905.0,34904.0,1.1446603]
[1625659847147,0.1325123,34905.0,34904.0,1.1446603]
[1625659847268,0.1325123,34905.0,34904.0,0.00498863]
[1625659848236,0.1325123,34905.0,34903.0,0.24057544]
[1625659850391,0.1325123,34905.0,34901.0,1.1386261]
[1625659850811,0.1325123,34905.0,34890.0,1.62673117]
[1625659850812,0.1325123,34905.0,34900.0,1.13978255]
[1625659851111,0.29757544,34901.0,34900.0,1.13978255]
[1625659851235,0.29757544,34901.0,34899.0,1.30253424]
[1625659851412,0.29757544,34901.0,34900.0,1.13968126]
[1625659851532,0.29757544,34901.0,34900.0,1.48280637]
[1625659853156,0.29757544,34901.0,34900.0,1.47782126]
[1625659853277,0.29757544,34901.0,34900.0,0.33814]
[1625659853821,0.29757544,34901.0,34900.0,1.47758077]
[1625659854240,0.29757544,34901.0,34900.0,1.48255037]
[1625659855082,0.29757544,34901.0,34900.0,0.3431096]
[1625659855744,0.29757544,34901.0,34900.0,0.33814]
[1625659855866,0.29757544,34901.0,34899.0,1.13938518]
[1625659855985,0.29757544,34901.0,34898.0,1.38039873]
[1625659856586,0.29757544,34901.0,34899.0,0.00496992]
[1625659857251,0.29757544,34901.0,34899.0,1.14388528]
[1625659857428,0.29757544,34901.0,34899.0,1.42477528]
[1625659857609,0.29757544,34901.0,34900.0,0.00496975]
[1625659858813,0.29757544,34901.0,34899.0,0.28089]
[1625659858930,0.29757544,34901.0,34898.0,0.24057544]
[1625659859110,0.29757544,34899.0,34898.0,0.24057544]
[1625659859651,0.29757544,34899.0,34898.0,0.24554544]
[1625659860670,0.29757544,34899.0,34898.0,1.38415203]
[1625659863852,0.24057544,34899.0,34898.0,1.38415203]
[1625659864215,0.24057544,34899.0,34898.0,2.68376131]
[1625659864338,0.24057544,34899.0,34898.0,2.90991131]
[1625659864697,0.24057544,34899.0,34898.0,4.37123055]
[1625659864876,0.24057544,34899.0,34898.0,4.37969325]
[1625659866078,0.24057544,34899.0,34898.0,2.91837401]
[1625659866199,0.24057544,34899.0,34898.0,1.77976742]
[1625659866317,0.24057544,34899.0,34898.0,1.77479742]
[1625659866437,0.24057544,34899.0,34898.0,1.77976633]
[1625659870107,0.24057544,34899.0,34898.0,1.55361633]
[1625659870582,0.29757544,34899.0,34898.0,1.55361633]
[1625659870703,0.29757544,34899.0,34898.0,1.31304089]
[1625659871003,0.29757544,34899.0,34898.0,1.30457819]
[1625659871130,0.53815088,34899.0,34898.0,1.30457819]
[1625659871303,4.50055088,34899.0,34898.0,0.00496891]
[1625659871664,4.50055088,34899.0,34896.0,0.98293247]
[1625659872026,4.50055088,34899.0,34898.0,0.00496562]
[1625659872268,4.50055088,34899.0,34892.0,1.22037445]
[1625659872269,4.50055088,34899.0,34897.0,0.00496589]
[1625659872505,4.50055088,34899.0,34892.0,0.24057544]
[1625659872506,4.50055088,34899.0,34898.0,0.00496599]
[1625659872747,4.50055088,34899.0,34893.0,0.00496607]
[1625659873166,0.29757544,34894.0,34893.0,0.00496607]
[1625659873287,0.51305544,34894.0,34893.0,0.00496607]
[1625659873527,0.51305544,34894.0,34889.0,0.98051922]
[1625659873528,0.51305544,34894.0,34890.0,0.00496629]
[1625659873829,0.51305544,34894.0,34893.0,0.00496637]
[1625659874068,0.51305544,34894.0,34891.0,0.00496637]
[1625659874429,0.51305544,34894.0,34893.0,0.00496644]
[1625659874848,0.51305544,34894.0,34889.0,0.00496649]
[1625659874969,0.51305544,34894.0,34887.0,0.98185077]
[1625659874970,0.51305544,34894.0,34888.0,0.00496644]
[1625659875212,0.53815088,34889.0,34888.0,0.00496644]
[1625659875389,0.53815088,34889.0,34887.0,0.98185077]
[1625659875510,0.48115088,34889.0,34888.0,0.00496632]
[1625659875692,0.48115088,34889.0,34888.0,1.24082837]
[1625659876051,0.53815088,34889.0,34888.0,1.24082837]
[1625659876892,0.53815088,34889.0,34888.0,0.25983632]
[1625659877072,0.53815088,34889.0,34888.0,0.00496632]
[1625659877855,0.48115088,34889.0,34888.0,0.98631423]
[1625659877972,0.48115088,34889.0,34888.0,1.28347423]
[1625659878094,0.48115088,34889.0,34888.0,2.42842758]
[1625659878455,0.48115088,34889.0,34888.0,3.73618172]
[1625659881223,0.48115088,34889.0,34888.0,5.20635522]
[1625659881644,0.057,34905.0,34888.0,5.2148195]
[1625659881943,0.057,34905.0,34889.0,0.01342841]
[1625659882063,0.057,34905.0,34899.0,0.97940911]
[1625659882183,0.057,34905.0,34900.0,0.97905361]
[1625659882544,1.00442518,34918.0,34900.0,0.98401773]
[1625659882666,0.057,34909.0,34901.0,0.97880915]
[1625659882787,1.0476,34908.0,34901.0,0.98377319]
[1625659883148,1.0476,34908.0,34902.0,0.00496394]
[1625659883265,0.24057544,34903.0,34902.0,0.24553938]
[1625659883389,0.29757544,34903.0,34902.0,1.22400282]
[1625659883687,0.29757544,34903.0,34902.0,0.24553938]
[1625659884470,0.24057544,34903.0,34902.0,0.24553938]
[1625659884771,0.24057544,34903.0,34902.0,1.22463144]
[1625659887716,0.29757544,34903.0,34902.0,1.22463144]
[1625659888200,0.29757544,34903.0,34902.0,0.73616379]
[1625659890240,0.29757544,34903.0,34902.0,0.73119985]
[1625659890361,0.29757544,34903.0,34902.0,1.71870085]
[1625659890661,0.29757544,34903.0,34902.0,1.93275085]
[1625659891504,0.29757544,34903.0,34902.0,3.07752403]
[1625659891747,0.29757544,34903.0,34902.0,1.93275085]
[1625659891863,0.29757544,34903.0,34902.0,1.71870085]
[1625659892765,0.29757544,34903.0,34902.0,2.37426819]
[1625659893308,0.29757544,34903.0,34902.0,3.52120961]
[1625659893426,0.29757544,34903.0,34902.0,3.83027961]
[1625659894269,0.29757544,34903.0,34902.0,5.14193635]
[1625659895049,0.29757544,34903.0,34902.0,3.52120961]
[1625659897574,0.29757544,34903.0,34902.0,4.83373178]
[1625659898834,0.29757544,34903.0,34902.0,4.59315634]
[1625659900097,0.29757544,34903.0,34902.0,4.93578634]
[1625659900640,0.29757544,34903.0,34902.0,6.41213214]
[1625659902562,0.29757544,34903.0,34902.0,4.93578634]
[1625659902683,0.29757544,34903.0,34902.0,4.59315634]
[1625659903650,0.54558544,34903.0,34902.0,4.59315634]
[1625659904905,0.54558544,34903.0,34902.0,3.28063417]
[1625659906292,1.05161287,34903.0,34902.0,3.28063417]
[1625659907613,1.7262869,34903.0,34902.0,2.13369275]
[1625659907793,1.7262869,34903.0,34902.0,0.13269275]
[1625659908155,2.90690663,34903.0,34902.0,0.13269275]
[1625659908634,2.90690663,34903.0,34898.0,1.15255374]
[1625659908933,0.057,34901.0,34899.0,0.00496111]
[1625659909475,0.53815088,34900.0,34899.0,0.00496111]
[1625659909716,0.53815088,34900.0,34898.0,0.00496131]
[1625659910017,0.53815088,34900.0,34899.0,0.00496141]
[1625659910136,0.53815088,34900.0,34891.0,1.48245112]
[1625659910317,0.057,34898.0,34897.0,0.00496182]
[1625659910617,0.057,34898.0,34891.0,0.00495581]
[1625659910857,0.057,34898.0,34897.0,0.00496333]
[1625659911163,4.3276,34893.0,34892.0,0.00496335]
[1625659911276,4.3846,34893.0,34892.0,0.00496335]
[1625659911398,4.3846,34893.0,34885.0,1.48495635]
[1625659911399,5.37107632,34893.0,34885.0,1.48495635]
[1625659911578,5.37107632,34893.0,34886.0,1.48440827]
[1625659911697,5.37107632,34893.0,34892.0,0.00496339]
[1625659911877,5.37107632,34893.0,34887.0,0.00496339]
[1625659912602,5.37107632,34893.0,34887.0,1.48863957]
[1625659912958,5.37107632,34893.0,34888.0,0.00496473]
[1625659913322,5.37107632,34893.0,34889.0,1.48175818]
[1625659913740,5.37107632,34893.0,34890.0,0.00496443]
[1625659913861,1.04347632,34893.0,34890.0,0.00496443]
[1625659913982,0.77872632,34893.0,34890.0,1.48638467]
[1625659914101,0.72172632,34893.0,34890.0,1.48638467]
[1625659914221,0.72172632,34893.0,34892.0,1.48041805]
[1625659914341,0.72172632,34893.0,34892.0,1.70045805]
[1625659914583,0.72172632,34893.0,34892.0,1.70542171]
[1625659915480,0.72172632,34893.0,34892.0,1.94599715]
[1625659916862,0.77872632,34893.0,34892.0,1.94599715]
[1625659916981,0.77872632,34893.0,34892.0,0.4655791]
[1625659917101,0.77872632,34893.0,34892.0,0.2455391]
[1625659917523,0.77872632,34893.0,34892.0,1.72568474]
[1625659917942,0.77872632,34893.0,34892.0,0.2455391]
[1625659918422,0.77872632,34893.0,34892.0,2.00110006]
[1625659919441,0.77872632,34893.0,34892.0,0.2455391]
[1625659921372,0.77872632,34893.0,34892.0,1.72512794]
[1625659921489,0.77872632,34893.0,34892.0,0.2455391]
[1625659921972,0.77872632,34893.0,34892.0,1.72501326]
[1625659922271,0.77872632,34893.0,34892.0,0.00496366]
[1625659922994,0.77872632,34893.0,34890.0,0.00496451]
[1625659923596,0.24057544,34892.0,34890.0,0.00496451]
[1625659923835,3.95843765,34891.0,34890.0,0.00496451]
[1625659924915,4.20252765,34891.0,34890.0,0.00496451]
[1625659925397,4.20252765,34891.0,34890.0,1.3216409]
[1625659925758,4.20252765,34891.0,34890.0,2.80274441]
[1625659926359,4.20252765,34891.0,34890.0,1.3216409]
[1625659928999,4.20252765,34891.0,34890.0,2.80229235]
[1625659929120,3.95843765,34891.0,34890.0,2.80229235]
[1625659930141,3.95843765,34891.0,34890.0,3.95426132]
[1625659932786,3.95843765,34891.0,34890.0,2.47360987]
[1625659932964,0.24057544,34892.0,34890.0,3.95314544]
[1625659933204,0.24057544,34892.0,34891.0,3.94458086]
[1625659933325,0.24057544,34892.0,34891.0,3.9495311]
[1625659934826,0.24057544,34892.0,34891.0,2.47031328]
[1625659936266,0.57802167,34892.0,34891.0,1.15545299]
[1625659936509,0.24057544,34892.0,34891.0,1.15545299]
[1625659936750,0.24057544,34892.0,34891.0,2.47162008]
[1625659937653,0.57804059,34892.0,34891.0,1.15545299]
[1625659937833,0.57804059,34892.0,34891.0,2.14269237]
[1625659938434,0.80402059,34892.0,34891.0,2.14269237]
[1625659938615,0.46655544,34892.0,34891.0,0.99218962]
[1625659939575,1.47849552,34892.0,34891.0,0.99218962]
[1625659939814,1.47849552,34892.0,34891.0,0.00495024]
[1625659941678,0.46655544,34892.0,34891.0,0.00495024]
[1625659941918,1.47800647,34892.0,34891.0,0.00495024]
[1625659942096,1.47800647,34892.0,34890.0,0.00495164]
[1625659942218,0.46655544,34892.0,34890.0,0.00495164]
[1625659942641,0.46655544,34892.0,34891.0,0.32837023]
[1625659942880,1.47806261,34892.0,34890.0,0.33325077]
[1625659943120,1.01150803,34891.0,34890.0,0.32829913]
[1625659943418,1.01150803,34891.0,34890.0,0.3332509]
[1625659944804,1.01150803,34891.0,34890.0,0.00495177]
[1625659944920,1.01150803,34891.0,34887.0,0.98474904]
[1625659945283,1.01150803,34891.0,34855.0,2.62589056]
[1625659945284,1.0114057,34889.0,34888.0,0.00494548]
[1625659945645,1.25198114,34889.0,34888.0,0.00494548]
[1625659945885,1.25198114,34889.0,34886.0,0.00494556]
[1625659946124,1.25198114,34889.0,34885.0,0.98500544]
[1625659946125,1.25198114,34889.0,34888.0,0.00494551]
[1625659946364,1.25198114,34889.0,34886.0,0.00494551]
[1625659947628,0.24057544,34887.0,34886.0,0.00494551]
[1625659947988,0.24057544,34887.0,34885.0,0.98921891]
[1625659948412,0.24057544,34887.0,34886.0,0.00494584]
[1625659948651,2.93117108,34887.0,34886.0,0.00494584]
[1625659948893,4.27925341,34887.0,34883.0,0.00494621]
[1625659949192,1.22228647,34884.0,34879.0,0.98579545]
[1625659949312,2.40194102,34884.0,34878.0,0.98614702]
[1625659949434,2.40194102,34884.0,34880.0,0.00494657]
[1625659949612,4.0329,34881.0,34879.0,0.00494657]
[1625659949733,4.75462632,34881.0,34879.0,0.00494657]
[1625659950034,4.75462632,34881.0,34877.0,0.98564805]
[1625659950213,5.76515732,34881.0,34875.0,0.98632839]
[1625659950452,5.76515732,34881.0,34878.0,0.00494678]
[1625659950695,5.76515732,34881.0,34876.0,0.99124651]
[1625659950814,1.01061325,34880.0,34876.0,0.00494682]
[1625659950936,1.01061325,34880.0,34877.0,0.00494945]
[1625659951297,1.01061325,34880.0,34876.0,0.00494942]
[1625659951477,5.76523372,34881.0,34875.0,0.98669326]
[1625659951656,0.48115088,34876.0,34875.0,0.98669326]
[1625659951779,0.79312088,34876.0,34875.0,0.98669326]
[1625659951898,0.79312088,34876.0,34873.0,0.98618267]
[1625659952017,0.79312088,34876.0,34875.0,0.0049495]
[1625659952316,0.79312088,34876.0,34874.0,0.00494876]
[1625659952558,0.79312088,34876.0,34875.0,0.0049488]
[1625659952799,0.79312088,34876.0,34874.0,0.00494899]
[1625659953399,0.79312088,34876.0,34875.0,0.98566147]
[1625659953882,0.48115088,34876.0,34875.0,0.99061001]
[1625659955325,0.48115088,34876.0,34875.0,2.13952521]
[1625659956293,0.48115088,34876.0,34875.0,0.99061001]
[1625659956406,0.48115088,34876.0,34875.0,1.22587001]
[1625659956529,0.48115088,34876.0,34875.0,2.37430848]
[1625659956887,0.48115088,34876.0,34875.0,3.6864083]
[1625659957367,0.48115088,34876.0,34875.0,2.37430848]
[1625659964824,0.48115088,34876.0,34875.0,1.22587001]
[1625659964942,0.48115088,34876.0,34875.0,0.99061001]
[1625659965425,0.48115088,34876.0,34875.0,0.00494854]
[1625659965905,0.48115088,34876.0,34873.0,0.00498772]
[1625659966146,0.48115088,34876.0,34875.0,0.00498758]
[1625659966447,0.48115088,34876.0,34874.0,0.00498758]
[1625659966568,4.4435,34875.0,34874.0,0.00498758]
[1625659966749,4.4435,34875.0,34872.0,0.98371893]
[1625659966867,4.4435,34875.0,34873.0,0.00498755]
[1625659966988,4.4435,34875.0,34873.0,0.98607994]
[1625659967287,4.4435,34875.0,34873.0,0.00498755]
[1625659967410,4.4435,34875.0,34874.0,0.00498755]
[1625659967770,4.4435,34875.0,34874.0,0.65868401]
[1625659967888,4.68407544,34875.0,34874.0,0.65868401]
[1625659968311,4.68407544,34875.0,34874.0,0.00498755]
[1625659968551,4.68407544,34875.0,34872.0,0.00498784]
[1625659968671,4.98296544,34875.0,34872.0,0.00498784]
[1625659968791,4.98296544,34875.0,34874.0,0.00498784]
[1625659969033,4.98296544,34875.0,34873.0,0.00498794]
[1625659969272,4.98296544,34875.0,34871.0,0.00498801]
[1625659969634,5.65602029,34875.0,34871.0,0.00498801]
[1625659969873,0.24057544,34872.0,34871.0,0.00498801]
[1625659970114,0.24057544,34872.0,34870.0,0.00498806]
[1625659970357,0.24057544,34872.0,34871.0,0.00498808]
[1625659971074,0.24057544,34872.0,34871.0,0.6538804]
[1625659971975,0.24057544,34872.0,34871.0,1.62682386]
[1625659974078,0.24057544,34872.0,34871.0,0.6538804]
[1625659974196,0.24057544,34872.0,34871.0,0.9458504]
[1625659974319,0.24057544,34872.0,34871.0,1.92107247]
[1625659974680,0.24057544,34872.0,34871.0,5.73377247]
[1625659974860,0.24057544,34872.0,34871.0,6.87110314]
[1625659975581,0.24057544,34872.0,34871.0,8.17040614]
[1625659977323,0.24057544,34872.0,34871.0,8.17887585]
[1625659978103,0.24057544,34872.0,34871.0,9.64047472]
[1625659980867,0.24057544,34872.0,34871.0,8.17887585]
[1625659981648,0.24057544,34872.0,34871.0,8.17388777]
[1625659981768,0.24057544,34872.0,34871.0,9.64358333]
[1625659989104,0.24057544,34875.0,34871.0,9.64358333]
[1625659989223,0.24057544,34885.0,34874.0,5.54008784]
[1625659989466,0.24057544,34885.0,34875.0,0.01344499]
[1625659989645,0.24057544,34885.0,34884.0,1.62838477]
[1625659989767,0.24057544,34885.0,34884.0,3.094815]
[1625659989945,0.48115088,34885.0,34884.0,3.094815]
[1625659990066,0.48115088,34885.0,34884.0,1.96061113]
[1625659990667,0.48115088,34885.0,34884.0,0.98358027]
[1625659990786,0.48115088,34885.0,34884.0,0.65633027]
[1625659991152,0.48115088,34885.0,34884.0,1.63451807]
[1625659992349,0.48115088,34885.0,34884.0,2.7760223]
[1625659992530,0.48115088,34885.0,34884.0,7.80063741]
[1625659993793,0.48115088,34885.0,34884.0,6.4966223]
[1625659994275,0.48115088,34885.0,34884.0,7.80217245]
[1625659994693,0.48115088,34885.0,34884.0,6.4966223]
[1625659995475,0.48115088,34885.0,34884.0,5.35511807]
[1625659995835,0.64990818,34885.0,34884.0,5.35511807]
[1625659997277,0.48115088,34885.0,34884.0,5.35511807]
[1625659997577,2.1675278,34885.0,34884.0,0.65633027]
[1625659997938,2.67365478,34885.0,34884.0,0.49582802]
[1625659998360,2.67365478,34885.0,34884.0,0.65952144]
[1625659998478,3.8544123,34885.0,34884.0,0.16866978]
[1625659998599,7.7521123,34885.0,34884.0,0.16866978]
[1625659999561,6.57135478,34885.0,34884.0,0.4959187]
[1625659999862,7.75237791,34885.0,34884.0,0.4959187]
[1625660000041,6.57135478,34885.0,34884.0,0.4959187]
[1625660000761,6.57135478,34885.0,34884.0,1.15045802]
[1625660001482,6.57135478,34885.0,34884.0,2.13203088]
[1625660001966,2.67365478,34885.0,34884.0,2.13203088]
[1625660002206,0.65003638,34885.0,34884.0,3.27623455]
[1625660002388,0.48115088,34885.0,34884.0,4.58320884]
[1625660003347,0.9952,34887.0,34884.0,4.58320884]
[1625660003768,0.9952,34887.0,34886.0,4.57151848]
[1625660003886,0.9952,34887.0,34886.0,4.79732848]
[1625660004126,0.9952,34887.0,34886.0,5.27847936]
[1625660004305,0.9952,34887.0,34886.0,5.28345897]
[1625660004969,0.0001,34887.0,34886.0,5.28345897]
[1625660005152,0.991,34889.0,34886.0,6.75111646]
[1625660005388,0.991,34889.0,34888.0,0.48891292]
[1625660005508,0.991,34889.0,34888.0,6.02992598]
[1625660005869,0.991,34889.0,34888.0,6.03490479]
[1625660006112,0.991,34889.0,34888.0,6.27548023]
[1625660006475,0.16879421,34896.0,34888.0,6.27548023]
[1625660006592,0.40926684,34897.0,34895.0,2.11644602]
[1625660006713,0.40926684,34897.0,34895.0,7.15195602]
[1625660006833,0.40926684,34897.0,34896.0,2.11645735]
[1625660006954,0.40926684,34897.0,34896.0,2.12143611]
[1625660007074,0.40926684,34897.0,34896.0,0.16792351]
[1625660007075,2.43200327,34897.0,34896.0,0.16792351]
[1625660007375,2.43200327,34897.0,34896.0,0.00497876]
[1625660007623,3.61193457,34897.0,34896.0,0.00497876]
[1625660007862,2.43200327,34897.0,34896.0,0.00497876]
[1625660008041,2.43200327,34897.0,34896.0,0.16791772]
[1625660008160,2.43200327,34897.0,34896.0,0.40849316]
[1625660008580,2.43200327,34897.0,34896.0,0.2455542]
[1625660009543,3.61157096,34897.0,34896.0,0.2455542]
[1625660010446,2.43200327,34897.0,34896.0,0.2455542]
[1625660011823,2.43200327,34897.0,34896.0,0.4630842]
[1625660012122,1.42063986,34897.0,34896.0,0.4630842]
[1625660012421,2.43137338,34897.0,34896.0,0.4630842]
[1625660012662,0.74634141,34897.0,34896.0,0.62573051]
[1625660012842,1.42005166,34897.0,34896.0,0.54441514]
[1625660013624,0.24057544,34897.0,34896.0,0.4630842]
[1625660013864,0.40912164,34897.0,34896.0,0.95080113]
[1625660014107,0.7458772,34897.0,34896.0,0.62570357]
[1625660014588,0.7458772,34897.0,34896.0,0.70701991]
[1625660015428,0.7458772,34897.0,34896.0,0.54440054]
[1625660015549,0.7458772,34897.0,34896.0,0.32687054]
[1625660015668,0.7458772,34897.0,34896.0,0.2455542]
[1625660015669,1.4194036,34897.0,34896.0,0.2455542]
[1625660016090,2.42962553,34897.0,34896.0,0.2455542]
[1625660018255,1.4194036,34897.0,34896.0,0.2455542]
[1625660018377,1.4194036,34897.0,34896.0,0.5043542]
[1625660018798,0.40904462,34897.0,34896.0,0.74821603]
[1625660019097,1.41902512,34897.0,34896.0,0.5043542]
[1625660020721,2.42892266,34897.0,34896.0,0.5043542]
[1625660021442,1.41902512,34897.0,34896.0,0.5043542]
[1625660021743,0.74564935,34897.0,34896.0,0.5043542]
[1625660023245,0.24057544,34897.0,34896.0,0.5043542]
[1625660023490,0.74553574,34897.0,34896.0,0.5043542]
[1625660025350,1.41872085,34897.0,34896.0,0.5043542]
[1625660025469,1.41872085,34897.0,34896.0,0.2455542]
[1625660027694,1.41872085,34897.0,34896.0,0.5349542]
[1625660027995,0.74553574,34897.0,34896.0,0.5349542]
[1625660028235,1.4189666,34897.0,34896.0,0.5349542]
[1625660028475,2.42909161,34897.0,34896.0,0.5349542]
[1625660028956,2.42909161,34897.0,34896.0,0.2455542]
[1625660029680,3.89517249,34897.0,34896.0,0.2455542]
[1625660030220,5.24278132,34897.0,34896.0,0.2455542]
[1625660030520,5.25551555,34897.0,34896.0,0.2455542]
[1625660031062,5.25551555,34897.0,34896.0,0.00497876]
[1625660031304,6.77181494,34897.0,34896.0,0.00497876]
[1625660031426,6.77181494,34897.0,34892.0,0.00498264]
[1625660031545,3.36985618,34893.0,34892.0,0.00498264]
[1625660031666,3.36985618,34893.0,34891.0,0.24057544]
[1625660031786,3.37111786,34892.0,34891.0,0.24057544]
[1625660032208,3.6116933,34892.0,34891.0,0.24555813]
[1625660032507,4.96015864,34892.0,34891.0,0.24555813]
[1625660033647,9.49365864,34892.0,34891.0,0.24555813]
[1625660035276,8.1451933,34892.0,34891.0,0.24555813]
[1625660035631,9.49433564,34892.0,34891.0,0.24555813]
[1625660035991,4.96083564,34892.0,34891.0,0.24555813]
[1625660036231,3.6116933,34892.0,34891.0,0.24555813]
[1625660036473,3.6116933,34892.0,34891.0,0.32725303]
[1625660036954,3.6116933,34892.0,34891.0,0.49062069]
[1625660037073,3.6116933,34892.0,34891.0,0.70811069]
[1625660037676,2.43186946,34892.0,34891.0,1.60602104]
[1625660038455,2.43186946,34892.0,34891.0,0.73540366]
[1625660038456,3.61267611,34892.0,34891.0,0.73540366]
[1625660038696,3.61267611,34892.0,34891.0,0.40891212]
[1625660038875,3.61267611,34892.0,34891.0,0.49060235]
[1625660039478,4.96231077,34892.0,34891.0,0.24555813]
[1625660041464,4.96231077,34892.0,34891.0,0.32744292]
[1625660041760,3.61267611,34892.0,34891.0,0.49118521]
[1625660042061,3.61267611,34892.0,34891.0,0.40930042]
[1625660042180,3.61267611,34892.0,34891.0,0.73675163]
[1625660045009,0.24057544,34892.0,34891.0,0.24555813]
[1625660045190,3.6163527,34892.0,34891.0,1.39370814]
[1625660046630,3.6163527,34892.0,34891.0,1.38872545]
[1625660046870,3.6163527,34892.0,34891.0,1.39370759]
[1625660048496,3.6163527,34892.0,34891.0,2.37805971]
[1625660048735,3.6163527,34892.0,34891.0,1.39370759]
[1625660049036,3.6163527,34892.0,34891.0,2.37824891]
[1625660050481,3.6163527,34892.0,34891.0,1.39370759]
[1625660051024,3.6163527,34892.0,34891.0,2.37864506]
[1625660051981,2.43489816,34892.0,34891.0,2.37864506]
[1625660052461,3.61675866,34892.0,34891.0,2.37864506]
[1625660054146,2.43489816,34892.0,34891.0,2.37864506]
[1625660054447,2.43489816,34892.0,34891.0,3.52750419]
[1625660054627,1.42219873,34892.0,34891.0,3.52750419]
[1625660054870,0.74700953,34892.0,34891.0,4.83977608]
[1625660055470,0.74700953,34892.0,34891.0,8.91967608]
[1625660055590,0.40953568,34892.0,34891.0,8.91967608]
[1625660055770,0.49409964,34892.0,34891.0,8.91967608]
[1625660056253,0.3251394,34892.0,34891.0,8.91967608]
[1625660056491,0.49410315,34892.0,34891.0,8.91967608]
[1625660056731,0.24057544,34892.0,34891.0,8.91967608]
[1625660056852,0.25352252,34893.0,34891.0,8.91967608]
[1625660056972,0.25351287,34894.0,34892.0,4.58854151]
[1625660057213,0.25351287,34894.0,34893.0,4.58844832]
[1625660057331,0.25351287,34894.0,34893.0,4.83414856]
[1625660057453,0.50650656,34894.0,34893.0,4.83414856]
[1625660057697,1.18181434,34894.0,34893.0,3.52316333]
[1625660057994,2.19469367,34894.0,34893.0,3.52316333]
[1625660058175,2.19469367,34894.0,34893.0,2.37605125]
[1625660058597,2.19469367,34894.0,34893.0,2.37590669]
[1625660058715,3.37679037,34894.0,34893.0,2.37590669]
[1625660058900,4.7277974,34894.0,34893.0,0.40987466]
[1625660059136,4.7277974,34894.0,34893.0,0.49204783]
[1625660059376,4.7277974,34894.0,34893.0,0.32772885]
[1625660060398,4.7277974,34894.0,34893.0,0.24555568]
[1625660060578,4.7277974,34894.0,34893.0,0.32776303]
[1625660061364,6.24813281,34894.0,34893.0,0.24555568]
[1625660062146,4.7277974,34894.0,34893.0,0.49248047]
[1625660062866,4.7277974,34894.0,34893.0,0.41017221]
[1625660063529,4.7277974,34894.0,34893.0,0.49246315]
[1625660063770,4.7277974,34894.0,34893.0,0.41017221]
[1625660064971,4.7277974,34894.0,34893.0,0.73944604]
[1625660065211,4.7277974,34894.0,34893.0,1.06869954]
[1625660065633,4.7277974,34894.0,34893.0,0.73942571]
[1625660066535,4.96837284,34894.0,34893.0,0.73942571]
[1625660066835,4.96837284,34894.0,34893.0,1.39772561]